[Event "NOR-ch Elite 2019"]
[Site "Larvik"]
[Date "2019.07.10"]
[Round "6.10"]
[White "Vestby-Ellingsen, Mads"]
[Black "Skrondal, Inge Sandstad"]
[Result "1/2-1/2"]
[ECO "D35"]
[WhiteElo "2335"]
[BlackElo "2312"]
[Annotator "NA"]
[PlyCount "45"]
[EventDate "2019.07.05"]
[EventType "swiss"]
[EventCountry "NOR"]
[SourceTitle "playchess.com"]
[Source "ChessBase"]
[SourceQuality "1"]
[TimeControl "40/5400+30:1800+30"]

1. d4 {[%emt 0:00:00]} d5 {[%emt 0:00:00]} 2. c4 {[%emt 0:00:00]} e6 {[%emt 0:00:00]} 3. Nc3 {[%emt 0:00:01]} Nf6 {[%emt 0:00:00]} 4. cxd5 {[%emt 0:00:16]} exd5 {[%emt 0:00:00]} 5. Bg5 {[%emt 0:00:17]} c6 {[%emt 0:00:00]} 6. e3 {[%emt 0:00:12]} Bf5 {[%emt 0:00:52]} 7. Qf3 {[%emt 0:00:27]} Bg6 {[%emt 0:00:04]} 8. Bxf6 {[%emt 0:00:16]} Qxf6 {[%emt 0:00:03]} 9. Qxf6 {[%emt 0:00:15]} gxf6 {[%emt 0:00:02]} 10. Nf3 {[%emt 0:03:45]} Nd7 {[%emt 0:00:44]} 11. h4 {[%emt 0:32:22]} Nb6 {[%emt 0:00:21]} 12. h5 {[%emt 0:03:19]} Bf5 {[%emt 0:01:28]} 13. Nh4 {[%emt 0:00:17]} Be6 {[%emt 0:00:21]} 14. Bd3 {[%emt 0:01:32]} Bb4 {[%emt 0:10:51]} 15. a3 {[%emt 0:05:13]} Bxc3+ {[%emt 0:00:14]} 16. bxc3 {[%emt 0:00:09]} Nc8 {[%emt 0:00:17]} 17. Nf5 {[%emt 0:02:56]} Bxf5 {[%emt 0:00:22]} 18. Bxf5 {[%emt 0:00:14]} Nd6 {[%emt 0:00:01]} 19. Bd3 {[%emt 0:00:18]} f5 {[%emt 0:00:54]} 20. f3 {[%emt 0:04:19]} Ke7 {[%emt 0:01:05]} 21. Kf2 {[%emt 0:01:05]} h6 {[%emt 0:05:06]} 22. Rh4 {[%emt 0:04:26]} Rhg8 {[%emt 0:02:15]} 23. Rb1 {[%emt 0:09:15]} 1/2-1/2

[Event "NOR-ch Elite 2019"]
[Site "Larvik"]
[Date "2019.07.10"]
[Round "6.11"]
[White "Ingebretsen, Jens E"]
[Black "Andersen, Alf Roger"]
[Result "1-0"]
[ECO "A21"]
[WhiteElo "2276"]
[BlackElo "2149"]
[Annotator "NA"]
[PlyCount "73"]
[EventDate "2019.07.05"]
[EventType "swiss"]
[EventCountry "NOR"]
[SourceTitle "playchess.com"]
[Source "ChessBase"]
[SourceQuality "1"]
[TimeControl "40/5400+30:1800+30"]

1. c4 {[%emt 0:00:00]} e5 {[%emt 0:00:00]} 2. Nc3 {[%emt 0:00:00]} Bb4 {[%emt 0:00:28]} 3. g3 {[%emt 0:01:31]} Bxc3 {[%emt 0:00:27]} 4. bxc3 {[%emt 0:00:28]} d6 {[%emt 0:04:13]} 5. Bg2 {[%emt 0:00:42]} Ne7 {[%emt 0:05:41]} 6. d3 {[%emt 0:04:46]} Nbc6 {[%emt 0:03:16]} 7. Rb1 {[%emt 0:03:02]} O-O {[%emt 0:01:23]} 8. e4 {[%emt 0:01:55]} Rb8 {[%emt 0:04:07]} 9. Ne2 {[%emt 0:00:48]} Be6 {[%emt 0:05:37]} 10. O-O {[%emt 0:02:19]} Qd7 {[%emt 0:01:34]} 11. f4 {[%emt 0:00:48]} f5 {[%emt 0:05:28]} 12. fxe5 {[%emt 0:18:26]} dxe5 {[%emt 0:01:15]} 13. Ba3 {[%emt 0:00:40]} b6 {[%emt 0:10:33]} 14. Qc2 {[%emt 0:20:39]} Rf6 {[%emt 0:07:51]} 15. Rbd1 {[%emt 0:03:45]} fxe4 {[%emt 0:19:11]} 16. Rxf6 {[%emt 0:00:30]} gxf6 {[%emt 0:00:27]} 17. Bxe4 {[%emt 0:00:56]} Rd8 {[%emt 0:04:29]} 18. Qd2 {[%emt 0:09:16]} Bxc4 {[%emt 0:11:14]} 19. Qh6 {[%emt 0:01:49]} f5 {[%emt 0:00:49]} 20. Qg5+ Kh8 21. Qf6+ Kg8 22. Bf3 Qe6 23. Qg5+ Kh8 24. Re1 Rg8 25. Qe3 Nd5 26. Bxd5 Bxd5 27. c4 Bxc4 28. dxc4 Qxc4 29. Rc1 Qd5 30. Rxc6 Qxc6 31. Qxe5+ Rg7 32. Bb2 Qd7 33. Nf4 Kg8 34. Nd5 Rg6 35. Qh8+ Kf7 36. Qxh7+ Ke6 37. Nf4+ {[%emt 1:37:20]} 1-0

[Event "NOR-ch Elite 2019"]
[Site "Larvik"]
[Date "2019.07.10"]
[Round "6.12"]
[White "Risting, Eivind Olav"]
[Black "Vitenberg, Noam Aviv"]
[Result "0-1"]
[ECO "E49"]
[WhiteElo "2314"]
[BlackElo "2300"]
[Annotator "NA"]
[PlyCount "72"]
[EventDate "2019.07.05"]
[EventType "swiss"]
[EventCountry "NOR"]
[SourceTitle "playchess.com"]
[Source "ChessBase"]
[SourceQuality "1"]
[TimeControl "40/5400+30:1800+30"]

1. d4 {[%emt 0:05:50]} d5 {[%emt 0:00:00]} 2. c4 {[%emt 0:00:07]} e6 {[%emt 0:00:00]} 3. Nc3 {[%emt 0:00:09]} Bb4 {[%emt 0:00:00]} 4. e3 {[%emt 0:01:31]} c5 {[%emt 0:00:24]} 5. a3 {[%emt 0:02:31]} Bxc3+ {[%emt 0:00:39]} 6. bxc3 {[%emt 0:00:05]} Nf6 {[%emt 0:00:31]} 7. cxd5 {[%emt 0:02:55]} exd5 {[%emt 0:00:42]} 8. Bd3 {[%emt 0:03:02]} O-O {[%emt 0:00:11]} 9. Ne2 {[%emt 0:00:25]} Nc6 {[%emt 0:03:54]} 10. O-O {[%emt 0:06:13]} Re8 {[%emt 0:00:17]} 11. f3 {[%emt 0:01:34]} Bd7 {[%emt 0:05:13]} 12. Qe1 {[%emt 0:10:01]} Na5 {[%emt 0:07:46]} 13. Rb1 {[%emt 0:04:20]} Ba4 {[%emt 0:02:33]} 14. dxc5 {[%emt 0:04:30]} Nd7 {[%emt 0:04:26]} 15. Bb5 {[%emt 0:10:56]} Bxb5 {[%emt 0:04:21]} 16. Rxb5 {[%emt 0:00:05]} a6 {[%emt 0:01:40]} 17. Rb4 {[%emt 0:04:55]} Nxc5 {[%emt 0:00:40]} 18. Nf4 {[%emt 0:06:07]} Nc4 {[%emt 0:13:05]} 19. Qd1 {[%emt 0:01:48]} Nb6 {[%emt 0:06:29]} 20. e4 {[%emt 0:03:43]} Rc8 {[%emt 0:05:11]} 21. Qd4 {[%emt 0:06:10]} Re7 {[%emt 0:10:51]} 22. exd5 {[%emt 0:07:01]} Rd7 {[%emt 0:02:02]} 23. c4 {[%emt 0:02:04]} a5 {[%emt 0:01:17]} 24. Rb5 {[%emt 0:01:13]} Nca4 {[%emt 0:00:23]} 25. c5 {[%emt 0:00:29]} Rdc7 {[%emt 0:06:12]} 26. Nh5 {[%emt 0:05:14]} f6 {[%emt 0:01:11]} 27. cxb6 {[%emt 0:01:12]} Rxc1 {[%emt 0:00:57]} 28. Ng3 {[%emt 0:09:12]} Rxf1+ {[%emt 0:01:48]} 29. Nxf1 {[%emt 0:00:35]} Nc3 {[%emt 0:02:29]} 30. Rb2 {[%emt 0:00:05]} Qe8 {[%emt 0:05:23]} 31. Qd2 {[%emt 0:00:55]} Nb5 {[%emt 0:09:55]} 32. Qxa5 {[%emt 0:00:07]} Nd4 {[%emt 0:00:11]} 33. Qd2 {[%emt 0:00:37]} Qe5 {[%emt 0:00:19]} 34. Rb4 {[%emt 0:00:42]} Rc2 {[%emt 0:02:42]} 35. Qxd4 {[%emt 0:00:35]} Qe2 {[%emt 0:00:10]} 36. Qg4 {[%emt 0:00:30]} Qf2+ {[%emt 0:00:06]} 0-1

[Event "NOR-ch Elite 2019"]
[Site "Larvik"]
[Date "2019.07.10"]
[Round "6.13"]
[White "Kaasen, Tor Fredrik"]
[Black "Altarbosh, Ward"]
[Result "1-0"]
[ECO "C11"]
[WhiteElo "2376"]
[BlackElo "2202"]
[Annotator "NA"]
[PlyCount "29"]
[EventDate "2019.07.05"]
[EventType "swiss"]
[EventCountry "NOR"]
[SourceTitle "playchess.com"]
[Source "ChessBase"]
[SourceQuality "1"]
[TimeControl "40/5400+30:1800+30"]

1. e4 {[%emt 0:01:35]} e6 {[%emt 0:00:00]} 2. d4 {[%emt 0:00:16]} d5 {[%emt 0:00:00]} 3. Nc3 {[%emt 0:00:30]} Nf6 {[%emt 0:00:00]} 4. e5 {[%emt 0:00:11]} Nfd7 {[%emt 0:00:00]} 5. f4 {[%emt 0:00:08]} c5 {[%emt 0:00:00]} 6. Nf3 {[%emt 0:00:06]} Nc6 {[%emt 0:00:00]} 7. Be3 {[%emt 0:00:08]} a6 {[%emt 0:00:02]} 8. Qd2 {[%emt 0:00:40]} b5 {[%emt 0:00:04]} 9. dxc5 {[%emt 0:00:41]} Bxc5 {[%emt 0:00:05]} 10. Bd3 {[%emt 0:00:07]} Qb6 {[%emt 0:00:06]} 11. Bf2 {[%emt 0:00:15]} Bb7 {[%emt 0:00:04]} 12. O-O {[%emt 0:00:12]} Bxf2+ {[%emt 0:00:05]} 13. Qxf2 {[%emt 0:00:10]} Qxf2+ {[%emt 0:00:04]} 14. Rxf2 {[%emt 0:00:39]} h6 {[%emt 0:00:56]} 15. Re1 {[%emt 0:04:42]} 1-0

[Event "NOR-ch Elite 2019"]
[Site "Larvik"]
[Date "2019.07.11"]
[Round "7.1"]
[White "Notkevich, Benjamin Arvola"]
[Black "Tari, Aryan"]
[Result "1/2-1/2"]
[ECO "D87"]
[WhiteElo "2497"]
[BlackElo "2620"]
[Annotator "ChessBase"]
[PlyCount "89"]
[EventDate "2019.07.05"]
[EventType "swiss"]
[EventCountry "NOR"]
[SourceTitle "playchess.com"]
[Source "ChessBase"]
[SourceQuality "1"]
[TimeControl "40/5400+30:1800+30"]

1. d4 {[%emt 0:00:00]} Nf6 {[%emt 0:00:00]} 2. c4 {[%emt 0:00:00]} g6 {[%emt 0:00:21]} 3. Nc3 {[%emt 0:00:00]} d5 {[%emt 0:00:04]} 4. cxd5 {[%emt 0:00:00]} Nxd5 {[%emt 0:00:04]} 5. e4 {[%emt 0:00:00]} Nxc3 {[%emt 0:00:06]} 6. bxc3 {[%emt 0:00:02]} Bg7 {[%emt 0:00:09]} 7. Bc4 {[%emt 0:00:05]} c5 {[%emt 0:00:20]} 8. Ne2 {[%emt 0:00:06]} O-O {[%emt 0:01:00]} 9. O-O {[%emt 0:00:06]} Nc6 {[%emt 0:00:04]} 10. Be3 {[%emt 0:00:05]} b6 {[%emt 0:01:20]} 11. dxc5 {[%emt 0:00:14]} Qc7 {[%emt 0:00:43]} 12. Nd4 {[%emt 0:00:17]} Ne5 {[%emt 0:00:30]} 13. Nb5 {[%emt 0:00:20]} Qb8 {[%emt 0:00:26]} 14. Be2 {[%emt 0:00:17]} bxc5 {[%emt 0:03:48]} 15. Rb1 {[%emt 0:00:08]} a6 {[%emt 0:01:02]} 16. Na3 {[%emt 0:00:05]} Qc7 {[%emt 0:00:21]} 17. f4 {[%emt 0:00:06]} Rd8 {[%emt 0:01:41]} 18. Qc2 {[%emt 0:00:11]} Ng4 {[%emt 0:03:05]} 19. Bxg4 {[%emt 0:00:06]} Bxg4 {[%emt 0:00:06]} 20. f5 {[%emt 0:00:06]} gxf5 {[%emt 0:02:32]} 21. Nc4 {[%emt 0:02:06]} e6 {[%emt 0:11:41]} 22. h3 {[%emt 0:01:27]} Bh5 {[%emt 0:00:31]} 23. exf5 {[%emt 0:00:08]} exf5 {[%emt 0:02:28]} 24. Bg5 {[%emt 0:03:32]} Rf8 {[%emt 0:06:33]} 25. Bf4 {[%emt 0:25:10]} Qc6 {[%emt 0:03:53]} 26. Rbe1 {[%emt 0:08:02]} Rfe8 {[%emt 0:08:03]} 27. Be5 {[%emt 0:24:43]} Bg6 {[%emt 0:06:40]} 28. Qf2 {[%emt 0:07:34]} f6 {[%emt 0:13:57]} 29. Bg3 {[%emt 0:02:24]} Bf8 {[%emt 0:01:02]} 30. Ne3 {[%emt 0:07:46]} c4 {[%emt 0:03:34]} 31. Nxf5 {[%emt 0:01:27]} Rxe1 {[%emt 0:02:03]} 32. Rxe1 {[%emt 0:04:41]} Re8 {[%emt 0:01:13]} 33. Rxe8 {[%emt 0:02:34]} Qxe8 {[%emt 0:00:20]} 34. Nd4 {[%emt 0:00:29]} Kf7 {[%emt 0:03:10]} 35. Qf4 {[%emt 0:07:50]} Bc5 {[%emt 0:06:55]} 36. Kh2 {[%emt 0:00:11]} Qe5 {[%emt 0:02:21]} 37. Qg4 {[%emt 0:05:24]} Qd5 {[%emt 0:00:56]} 38. Qf4 {[%emt 0:00:21]} Bxd4 {[%emt 0:01:52]} 39. cxd4 {[%emt 0:00:09]} Be4 {[%emt 0:01:54]} 40. Bh4 {[%emt 0:01:15]} Qxd4 {[%emt 0:05:58]} 41. Qc7+ {[%emt 0:08:25]} Kg6 {[%emt 0:02:22]} 42. Qg3+ {[%emt 0:00:12]} Kf7 {[%emt 0:01:08]} 43. Qc7+ {[%emt 0:00:10]} Kg6 {[%emt 0:01:21]} 44. Qg3+ {[%emt 0:00:06]} Kf7 {[%emt 0:00:20]} 45. Qc7+ {[%emt 0:00:06]} 1/2-1/2

[Event "NOR-ch Elite 2019"]
[Site "Larvik"]
[Date "2019.07.11"]
[Round "7.2"]
[White "Hammer, Jon Ludvig"]
[Black "Christiansen, Johan-Sebastian"]
[Result "1/2-1/2"]
[ECO "A37"]
[WhiteElo "2637"]
[BlackElo "2548"]
[Annotator "ChessBase"]
[PlyCount "113"]
[EventDate "2019.07.05"]
[EventType "swiss"]
[EventCountry "NOR"]
[SourceTitle "playchess.com"]
[Source "ChessBase"]
[SourceQuality "1"]
[TimeControl "40/5400+30:1800+30"]

1. c4 {[%emt 0:00:40]} c5 {[%emt 0:00:27]} 2. g3 {[%emt 0:00:00]} Nc6 {[%emt 0:00:33]} 3. Bg2 {[%emt 0:00:00]} g6 {[%emt 0:00:05]} 4. Nc3 {[%emt 0:00:00]} Bg7 {[%emt 0:00:03]} 5. Nf3 {[%emt 0:00:00]} e6 {[%emt 0:00:21]} 6. d4 {[%emt 0:00:00]} Nxd4 {[%emt 0:00:04]} 7. Nxd4 {[%emt 0:00:09]} cxd4 {[%emt 0:00:02]} 8. Ne4 {[%emt 0:00:58]} d5 {[%emt 0:00:02]} 9. Qa4+ {[%emt 0:03:02]} Kf8 {[%emt 0:00:13]} 10. Qa3+ {[%emt 0:05:08]} Qe7 {[%emt 0:00:04]} 11. Nd6 {[%emt 0:01:05]} Be5 {[%emt 0:00:02]} 12. Nxc8 {[%emt 0:09:18]} Qxa3 {[%emt 0:00:02]} 13. bxa3 {[%emt 0:00:09]} Rxc8 {[%emt 0:00:03]} 14. cxd5 {[%emt 0:00:11]} b6 {[%emt 0:00:01]} 15. Bb2 {[%emt 0:29:35]} Rc2 {[%emt 0:02:56]} 16. Rb1 {[%emt 0:00:14]} d3 {[%emt 0:00:43]} 17. Bxe5 {[%emt 0:00:07]} Rxe2+ {[%emt 0:00:03]} 18. Kd1 {[%emt 0:00:16]} Rxe5 {[%emt 0:00:13]} 19. Re1 {[%emt 0:02:24]} Rxe1+ {[%emt 0:33:18]} 20. Kxe1 {[%emt 0:00:02]} exd5 {[%emt 0:05:10]} 21. Rd1 {[%emt 0:00:45]} Nf6 {[%emt 0:01:05]} 22. Rxd3 {[%emt 0:00:08]} Ke7 {[%emt 0:14:43]} 23. Bxd5 {[%emt 0:00:08]} Nxd5 {[%emt 0:00:21]} 24. Rxd5 {[%emt 0:00:07]} Rc8 {[%emt 0:00:04]} 25. Kd2 {[%emt 0:03:29]} Rc4 {[%emt 0:03:30]} 26. Rd3 {[%emt 0:01:57]} Ra4 {[%emt 0:00:52]} 27. Kc2 {[%emt 0:05:20]} h5 {[%emt 0:01:18]} 28. Re3+ {[%emt 0:01:40]} Kf6 {[%emt 0:00:43]} 29. Rf3+ {[%emt 0:08:53]} Ke6 {[%emt 0:01:42]} 30. Re3+ {[%emt 0:00:05]} Kf5 {[%emt 0:01:36]} 31. Rf3+ {[%emt 0:00:06]} Ke6 {[%emt 0:13:23]} 32. Re3+ {[%emt 0:00:06]} Kf6 {[%emt 0:00:04]} 33. Rf3+ {[%emt 0:00:12]} Kg7 {[%emt 0:00:01]} 34. h3 {[%emt 0:09:43]} Ra5 {[%emt 0:01:22]} 35. Kd2 {[%emt 0:01:25]} g5 {[%emt 0:01:46]} 36. Rd3 {[%emt 0:03:59]} Kg6 {[%emt 0:02:39]} 37. Ke3 {[%emt 0:00:32]} Rc5 {[%emt 0:01:57]} 38. g4 {[%emt 0:09:03]} f6 {[%emt 0:06:16]} 39. a4 {[%emt 0:05:35]} Rc1 {[%emt 0:05:21]} 40. Kf3 {[%emt 0:02:33]} Rc4 {[%emt 0:02:49]} 41. a5 {[%emt 0:30:46]} bxa5 {[%emt 0:04:57]} 42. Rd7 {[%emt 0:00:00]} Ra4 {[%emt 0:00:39]} 43. Rxa7 {[%emt 0:00:00]} Rxa2 {[%emt 0:00:07]} 44. Kg2 {[%emt 0:00:00]} a4 {[%emt 0:01:33]} 45. Kf3 {[%emt 0:00:00]} Ra3+ {[%emt 0:00:15]} 46. Kg2 {[%emt 0:00:00]} h4 {[%emt 0:00:11]} 47. Kh2 {[%emt 0:00:00]} Rf3 {[%emt 0:00:09]} 48. Kg2 {[%emt 0:00:00]} Rf4 {[%emt 0:00:14]} 49. Kg1 {[%emt 0:00:00]} Rc4 {[%emt 0:00:48]} 50. Kg2 {[%emt 0:00:00]} Rb4 {[%emt 0:00:05]} 51. Kh2 {[%emt 0:00:00]} Rb2 {[%emt 0:01:53]} 52. Kg2 {[%emt 0:00:00]} Ra2 {[%emt 0:00:05]} 53. Kf3 {[%emt 0:00:00]} Ra1 {[%emt 0:01:20]} 54. Kg2 {[%emt 0:00:00]} a3 {[%emt 0:00:31]} 55. Kh2 {[%emt 0:00:00]} a2 {[%emt 0:00:14]} 56. Kg2 {[%emt 0:00:00]} Kh6 {[%emt 0:00:09]} 57. Kh2 {[%emt 0:00:00]} 1/2-1/2

[Event "NOR-ch Elite 2019"]
[Site "Larvik"]
[Date "2019.07.11"]
[Round "7.3"]
[White "Urkedal, Frode Olav Olsen"]
[Black "Lie, Kjetil A."]
[Result "1-0"]
[ECO "D24"]
[WhiteElo "2566"]
[BlackElo "2538"]
[Annotator "ChessBase"]
[PlyCount "85"]
[EventDate "2019.07.05"]
[EventType "swiss"]
[EventCountry "NOR"]
[SourceTitle "playchess.com"]
[Source "ChessBase"]
[SourceQuality "1"]
[TimeControl "40/5400+30:1800+30"]

1. d4 {[%emt 0:00:00]} Nf6 {[%emt 0:00:00]} 2. c4 {[%emt 0:00:00]} e6 {[%emt 0:00:19]} 3. Nf3 {[%emt 0:00:12]} d5 {[%emt 0:00:50]} 4. Nc3 {[%emt 0:00:50]} dxc4 {[%emt 0:00:44]} 5. e4 {[%emt 0:00:07]} b5 {[%emt 0:00:25]} 6. e5 {[%emt 0:00:06]} Nd5 {[%emt 0:00:21]} 7. Nxb5 {[%emt 0:00:05]} Nb6 {[%emt 0:00:48]} 8. Be2 {[%emt 0:02:20]} Nc6 {[%emt 0:01:02]} 9. O-O {[%emt 0:00:31]} Be7 {[%emt 0:00:13]} 10. Nc3 {[%emt 0:01:31]} O-O {[%emt 0:02:54]} 11. Qd2 {[%emt 0:01:26]} Bb7 {[%emt 0:08:45]} 12. Rd1 {[%emt 0:06:02]} Nb4 {[%emt 0:12:09]} 13. Qf4 {[%emt 0:02:36]} f5 {[%emt 0:10:54]} 14. Qg3 {[%emt 0:05:12]} Kh8 {[%emt 0:08:36]} 15. Ng5 {[%emt 0:26:46]} Bxg5 {[%emt 0:04:23]} 16. Bxg5 {[%emt 0:00:11]} Qd7 {[%emt 0:00:43]} 17. Qh4 {[%emt 0:01:15]} f4 {[%emt 0:17:12]} 18. Be7 {[%emt 0:12:16]} Nc2 {[%emt 0:04:14]} 19. Rac1 {[%emt 0:01:42]} Nxd4 {[%emt 0:00:22]} 20. Bf1 {[%emt 0:00:15]} Rfc8 {[%emt 0:09:43]} 21. Bc5 {[%emt 0:05:13]} Nf5 {[%emt 0:00:05]} 22. Qxf4 {[%emt 0:00:55]} Qc6 {[%emt 0:00:35]} 23. Ba3 {[%emt 0:00:33]} Rd8 {[%emt 0:00:51]} 24. Rd2 {[%emt 0:05:02]} Rxd2 {[%emt 0:03:36]} 25. Qxd2 {[%emt 0:00:07]} h6 {[%emt 0:00:33]} 26. Rd1 {[%emt 0:04:33]} Qe8 {[%emt 0:03:11]} 27. f3 {[%emt 0:10:31]} Qh5 {[%emt 0:00:55]} 28. Qf2 {[%emt 0:00:59]} Qg5 {[%emt 0:02:51]} 29. Bc5 {[%emt 0:03:23]} Nh4 {[%emt 0:03:59]} 30. f4 {[%emt 0:02:04]} Qh5 {[%emt 0:02:23]} 31. h3 {[%emt 0:00:35]} g5 {[%emt 0:01:01]} 32. fxg5 {[%emt 0:00:41]} Qxg5 {[%emt 0:00:34]} 33. Be3 {[%emt 0:01:44]} Qe7 {[%emt 0:00:30]} 34. Bc5 {[%emt 0:00:07]} Qg5 {[%emt 0:00:29]} 35. Qf6+ {[%emt 0:00:20]} Qxf6 {[%emt 0:00:18]} 36. exf6 {[%emt 0:00:06]} Kg8 {[%emt 0:00:45]} 37. Bxb6 {[%emt 0:01:20]} axb6 {[%emt 0:00:04]} 38. Rd7 {[%emt 0:00:21]} Rf8 {[%emt 0:01:10]} 39. Rxc7 {[%emt 0:00:15]} Bd5 {[%emt 0:00:31]} 40. Bxc4 {[%emt 0:00:17]} Rxf6 {[%emt 0:00:29]} 41. Nxd5 {[%emt 0:30:17]} exd5 {[%emt 0:30:06]} 42. Bxd5+ {[%emt 0:00:05]} Kf8 {[%emt 0:00:10]} 43. Rc6 {[%emt 0:00:26]} 1-0

[Event "NOR-ch Elite 2019"]
[Site "Larvik"]
[Date "2019.07.11"]
[Round "7.4"]
[White "Holm, Kristian Stuvik"]
[Black "Haldorsen, Benjamin"]
[Result "1-0"]
[ECO "A31"]
[WhiteElo "2469"]
[BlackElo "2444"]
[Annotator "ChessBase"]
[PlyCount "61"]
[EventDate "2019.07.05"]
[EventType "swiss"]
[EventCountry "NOR"]
[SourceTitle "playchess.com"]
[Source "ChessBase"]
[SourceQuality "1"]
[TimeControl "40/5400+30:1800+30"]

1. d4 {[%emt 0:00:15]} Nf6 {[%emt 0:00:54]} 2. c4 {[%emt 0:00:15]} c5 {[%emt 0:00:26]} 3. Nf3 {[%emt 0:00:08]} cxd4 {[%emt 0:02:44]} 4. Nxd4 {[%emt 0:00:56]} e5 {[%emt 0:00:08]} 5. Nb5 {[%emt 0:00:06]} d5 {[%emt 0:00:04]} 6. cxd5 {[%emt 0:00:07]} a6 {[%emt 0:00:58]} 7. N5c3 {[%emt 0:00:50]} Bc5 {[%emt 0:00:27]} 8. g3 {[%emt 0:01:50]} Qe7 {[%emt 0:06:07]} 9. Bg2 {[%emt 0:01:52]} O-O {[%emt 0:00:08]} 10. O-O {[%emt 0:02:26]} Bg4 {[%emt 0:38:56]} 11. Bg5 {[%emt 0:11:14]} Nbd7 {[%emt 0:01:21]} 12. h3 {[%emt 0:08:38]} Bh5 {[%emt 0:00:20]} 13. g4 {[%emt 0:00:10]} Bg6 {[%emt 0:00:40]} 14. Nd2 {[%emt 0:00:06]} h6 {[%emt 0:00:48]} 15. Bh4 {[%emt 0:00:36]} Rac8 {[%emt 0:05:40]} 16. Nde4 {[%emt 0:05:02]} Bd4 {[%emt 0:01:36]} 17. e3 {[%emt 0:01:09]} Bxe4 {[%emt 0:13:57]} 18. Nxe4 {[%emt 0:00:24]} Bxb2 {[%emt 0:00:07]} 19. Rb1 {[%emt 0:00:22]} Qa3 {[%emt 0:01:46]} 20. Bxf6 {[%emt 0:03:38]} Nxf6 {[%emt 0:00:42]} 21. Nxf6+ {[%emt 0:00:07]} gxf6 {[%emt 0:00:03]} 22. Qe2 {[%emt 0:00:08]} Bc3 {[%emt 0:01:08]} 23. Rxb7 {[%emt 0:00:28]} Rb8 {[%emt 0:03:46]} 24. Ra7 {[%emt 0:04:22]} Ra8 {[%emt 0:03:03]} 25. Rxa8 {[%emt 0:00:19]} Rxa8 {[%emt 0:00:00]} 26. Rb1 {[%emt 0:02:51]} Qd6 {[%emt 0:00:29]} 27. Be4 {[%emt 0:01:36]} f5 {[%emt 0:00:59]} 28. gxf5 {[%emt 0:04:17]} Kh8 {[%emt 0:00:43]} 29. Rc1 {[%emt 0:01:50]} Rg8+ {[%emt 0:01:19]} 30. Kh2 {[%emt 0:00:54]} Qb4 {[%emt 0:02:33]} 31. Qh5 {[%emt 0:01:07]} 1-0

[Event "NOR-ch Elite 2019"]
[Site "Larvik"]
[Date "2019.07.11"]
[Round "7.5"]
[White "Hauge, Lars Oskar"]
[Black "Getz, Nicolai"]
[Result "1-0"]
[ECO "B09"]
[WhiteElo "2476"]
[BlackElo "2377"]
[Annotator "ChessBase"]
[PlyCount "39"]
[EventDate "2019.07.05"]
[EventType "swiss"]
[EventCountry "NOR"]
[SourceTitle "playchess.com"]
[Source "ChessBase"]
[SourceQuality "1"]
[TimeControl "40/5400+30:1800+30"]

1. e4 {[%emt 0:02:16]} d6 {[%emt 0:00:00]} 2. Nc3 {[%emt 0:00:03]} g6 {[%emt 0:05:03]} 3. f4 {[%emt 0:02:42]} Bg7 {[%emt 0:03:49]} 4. d4 {[%emt 0:02:00]} Nf6 {[%emt 0:00:25]} 5. Bd3 {[%emt 0:00:12]} Nc6 {[%emt 0:01:32]} 6. e5 {[%emt 0:04:14]} dxe5 {[%emt 0:03:56]} 7. fxe5 {[%emt 0:01:31]} Nd5 {[%emt 0:02:07]} 8. Nf3 {[%emt 0:01:18]} Nxc3 {[%emt 0:14:03]} 9. bxc3 {[%emt 0:00:11]} Na5 {[%emt 0:09:25]} 10. O-O {[%emt 0:00:43]} c5 {[%emt 0:02:09]} 11. Ng5 {[%emt 0:09:51]} O-O {[%emt 0:01:17]} 12. Nxh7 {[%emt 0:01:54]} Kxh7 {[%emt 0:09:57]} 13. Rxf7 {[%emt 0:01:36]} Rxf7 {[%emt 0:04:29]} 14. Qh5+ {[%emt 0:00:38]} Kg8 {[%emt 0:00:06]} 15. Bxg6 {[%emt 0:00:03]} Kf8 {[%emt 0:16:48]} 16. Bxf7 {[%emt 0:04:19]} Bg4 {[%emt 0:00:43]} 17. Qxg4 {[%emt 0:00:05]} Kxf7 {[%emt 0:00:15]} 18. Bh6 {[%emt 0:00:10]} Qh8 {[%emt 0:06:10]} 19. Rf1+ {[%emt 0:00:10]} Bf6 {[%emt 0:00:09]} 20. Qh5+ {[%emt 0:01:05]} 1-0

[Event "NOR-ch Elite 2019"]
[Site "Larvik"]
[Date "2019.07.11"]
[Round "7.6"]
[White "Elsness, Frode"]
[Black "Stokke, Kjetil"]
[Result "1-0"]
[ECO "D27"]
[WhiteElo "2436"]
[BlackElo "2336"]
[Annotator "ChessBase"]
[PlyCount "57"]
[EventDate "2019.07.05"]
[EventType "swiss"]
[EventCountry "NOR"]
[SourceTitle "playchess.com"]
[Source "ChessBase"]
[SourceQuality "1"]
[TimeControl "40/5400+30:1800+30"]

1. d4 {[%emt 0:01:33]} d5 {[%emt 0:01:53]} 2. c4 {[%emt 0:00:00]} dxc4 {[%emt 0:01:47]} 3. Nf3 {[%emt 0:00:00]} Nf6 {[%emt 0:00:08]} 4. e3 {[%emt 0:00:00]} e6 {[%emt 0:00:44]} 5. Bxc4 {[%emt 0:00:00]} c5 {[%emt 0:00:02]} 6. O-O {[%emt 0:00:00]} a6 {[%emt 0:00:04]} 7. dxc5 {[%emt 0:00:20]} Bxc5 {[%emt 0:00:04]} 8. Qxd8+ {[%emt 0:00:10]} Kxd8 {[%emt 0:00:03]} 9. Be2 {[%emt 0:00:32]} Ke7 {[%emt 0:02:44]} 10. Nbd2 {[%emt 0:00:35]} Rd8 {[%emt 0:03:38]} 11. Nb3 {[%emt 0:08:07]} Bd6 {[%emt 0:01:52]} 12. Nfd2 {[%emt 0:03:44]} Nc6 {[%emt 0:06:27]} 13. Nc4 {[%emt 0:15:28]} Bc7 {[%emt 0:00:22]} 14. Bd2 {[%emt 0:11:57]} Ne4 {[%emt 0:07:37]} 15. Be1 {[%emt 0:02:31]} a5 {[%emt 0:17:24]} 16. a4 {[%emt 0:08:48]} e5 {[%emt 0:06:17]} 17. Rc1 {[%emt 0:03:50]} Nd6 {[%emt 0:13:14]} 18. Nxe5 {[%emt 0:02:24]} Nxe5 {[%emt 0:09:14]} 19. Rxc7+ {[%emt 0:00:06]} Rd7 {[%emt 0:00:04]} 20. Rc5 {[%emt 0:04:26]} f6 {[%emt 0:00:36]} 21. Rxa5 {[%emt 0:02:37]} Rb8 {[%emt 0:01:29]} 22. Rd5 {[%emt 0:05:04]} Ke6 {[%emt 0:02:25]} 23. Rd1 {[%emt 0:04:59]} Rc7 {[%emt 0:00:27]} 24. Bb4 {[%emt 0:01:40]} Nef7 {[%emt 0:00:51]} 25. Nd4+ {[%emt 0:02:47]} Ke5 {[%emt 0:00:11]} 26. f4+ {[%emt 0:02:01]} Ke4 {[%emt 0:00:04]} 27. Bf3+ {[%emt 0:00:39]} Kxe3 {[%emt 0:00:04]} 28. Rfe1+ {[%emt 0:00:15]} Kxf4 {[%emt 0:00:06]} 29. Bd2# {[%emt 0:00:07]} 1-0